fUST/lending_fUST_20240901
["ID","MTS","AMOUNT","RATE_DAILY","PERIOD"]
[336774646,1725135046154,-500.0,0.0003315,31]
[336774647,1725135046164,-500.0,0.0003315,31]
[336774648,1725135046174,-658.33,0.0003315,31]
[336774649,1725135046184,-1000.0,0.0003315,7]
[336774650,1725135046194,-500.0,0.0003315,31]
[336774651,1725135046204,-500.0,0.0003315,31]
[336774652,1725135046214,-500.0,0.0003315,7]
[336774653,1725135046223,-504.3,0.0003315,31]
[336774654,1725135046232,-605.03846036,0.0003315,31]
[336774655,1725135046242,-754.44,0.0003315,31]
[336774656,1725135046251,-500.0,0.0003315,31]
[336774657,1725135046260,-500.0,0.0003315,31]
[336774658,1725135046269,-500.0,0.0003315,31]
[336774659,1725135046279,-839.86,0.0003315,31]
[336774660,1725135046288,-500.0,0.0003315,31]
[336774661,1725135046297,-230.02264608,0.0003315,31]
[336774662,1725135046306,-500.0,0.0003315,31]
[336774663,1725135046316,-741.0,0.0003315,31]
[336774664,1725135046325,-500.0,0.0003315,31]
[336774665,1725135046335,-500.0,0.0003315,31]
[336774666,1725135046345,-648.83,0.0003315,31]
[336774667,1725135046355,-844.94,0.0003315,31]
[336774668,1725135046364,-500.0,0.0003315,31]
[336774669,1725135046373,-895.62,0.0003315,31]
[336774670,1725135046382,-500.0,0.0003315,31]
[336774671,1725135046391,-151.0,0.0003315,14]
[336774672,1725135046402,-151.0,0.0003315,14]
[336774673,1725135046412,-249.90639082,0.0003315,31]
[336774674,1725135046421,-151.0,0.0003315,14]
[336774675,1725135046431,-151.0,0.0003315,14]
[336774676,1725135046443,-500.0,0.0003315,31]
[336774677,1725135046453,-500.0,0.0003315,31]
[336774678,1725135046462,-500.0,0.0003315,31]
[336774679,1725135046471,-562.3,0.0003315,31]
[336774680,1725135046481,-500.0,0.0003315,31]
[336774681,1725135046490,-500.0,0.0003315,31]
[336774682,1725135046499,-500.0,0.0003315,31]
[336774683,1725135046511,-500.0,0.0003315,31]
[336774684,1725135046520,-500.0,0.0003315,31]
[336774685,1725135046529,-500.0,0.0003315,31]
[336774686,1725135046539,-500.0,0.0003315,31]
[336774687,1725135046548,-500.0,0.0003315,31]
[336774688,1725135046557,-706.27,0.0003315,31]
[336774689,1725135046567,-500.0,0.0003315,31]
[336774690,1725135046576,-500.0,0.0003315,31]
[336774691,1725135046585,-500.0,0.0003315,31]
[336774692,1725135046596,-500.0,0.0003315,31]
[336774693,1725135046609,-500.0,0.0003315,31]
[336774694,1725135046619,-500.0,0.0003315,31]
[336774695,1725135046628,-500.0,0.0003315,31]
[336774696,1725135046638,-836.13,0.0003315,31]
[336774697,1725135046648,-500.0,0.0003315,31]
[336774698,1725135046658,-500.0,0.0003315,31]
[336774699,1725135046668,-500.0,0.0003315,31]
[336774700,1725135046678,-500.0,0.0003315,31]
[336774701,1725135046688,-500.0,0.0003315,31]
[336774702,1725135046698,-500.0,0.0003315,31]
[336774703,1725135046711,-500.0,0.0003315,31]
[336774704,1725135046719,-687.93,0.0003315,31]
[336774705,1725135046730,-500.0,0.0003315,31]
[336774706,1725135046739,-940.42,0.0003315,31]
[336774707,1725135046749,-500.0,0.0003315,31]
[336774708,1725135046758,-500.0,0.0003315,31]
[336774709,1725135046767,-500.0,0.0003315,31]
[336774710,1725135046776,-500.0,0.0003315,31]
[336774711,1725135046785,-503.3026395,0.0003315,31]
[336774712,1725135046795,-755.15,0.0003315,31]
[336774713,1725135046804,-500.0,0.0003315,31]
[336774714,1725135046815,-500.0,0.0003315,31]
[336774715,1725135046825,-500.0,0.0003315,31]
[336774716,1725135046837,-500.0,0.0003315,31]
[336774717,1725135046848,-500.0,0.0003315,31]
[336774718,1725135046858,-500.0,0.0003315,31]
[336774719,1725135046867,-857.84,0.0003315,31]
[336774720,1725135046877,-500.0,0.0003315,31]
[336774721,1725135046886,-500.0,0.0003315,31]
[336774722,1725135046895,-764.15,0.0003315,14]
[336774723,1725135046904,-500.0,0.0003315,31]
[336774724,1725135046913,-500.0,0.0003315,31]
[336774725,1725135046921,-500.0,0.0003315,31]
[336774726,1725135046931,-810.01,0.0003315,31]
[336774727,1725135046943,-500.0,0.0003315,31]
[336774728,1725135046953,-500.0,0.0003315,31]
[336774729,1725135046962,-500.0,0.0003315,31]
[336774730,1725135046971,-786.34,0.0003315,31]
[336774731,1725135046980,-500.0,0.0003315,31]
[336774732,1725135046988,-500.0,0.0003315,31]
[336774733,1725135046997,-500.0,0.0003315,31]
[336774734,1725135047006,-632.06,0.0003315,7]
[336774735,1725135047015,-500.0,0.0003315,30]
[336774736,1725135047024,-777.81,0.0003315,31]
[336774737,1725135047033,-200.0,0.0003315,7]
[336774738,1725135047043,-500.0,0.0003315,31]
[336774739,1725135047052,-764.27,0.0003315,31]
[336774740,1725135047061,-500.0,0.0003315,31]
[336774741,1725135047070,-500.0,0.0003315,31]
[336774742,1725135047079,-500.0,0.0003315,31]
[336774743,1725135047088,-1079.26,0.0003315,31]
[336774744,1725135047098,-500.0,0.0003315,31]
[336774745,1725135047106,-4767.780218,0.0003315,14]
[336774746,1725135047116,-4767.780218,0.0003315,14]
[336774747,1725135047125,-4767.780218,0.0003315,14]
[336774748,1725135047135,-4767.780218,0.0003315,14]
[336774749,1725135047146,-4767.780218,0.0003315,14]
[336774750,1725135047157,-4767.780218,0.0003315,14]
[336774751,1725135047166,-500.0,0.0003315,31]
[336774752,1725135047179,-500.0,0.0003315,31]
[336774753,1725135047188,-500.0,0.0003315,31]
[336774754,1725135047197,-786.53,0.0003315,31]
[336774755,1725135047207,-500.0,0.0003315,31]
[336774756,1725135047217,-500.0,0.0003315,31]
[336774757,1725135047227,-500.0,0.0003315,31]
[336774758,1725135047323,-928.23,0.0003315,31]
[336774759,1725135047335,-500.0,0.0003315,31]
[336774760,1725135047344,-351.61318953,0.0003315,31]
[336774761,1725135047356,-500.0,0.0003315,31]
[336774762,1725135047366,-588.29,0.0003315,31]
[336774763,1725135047376,-912.26,0.0003315,31]
[336774764,1725135047387,-1003.39,0.0003315,31]
[336774765,1725135047395,-570.45,0.0003315,31]
[336774766,1725135047406,-500.0,0.0003315,31]
[336774767,1725135047415,-854.51,0.0003315,31]
[336774768,1725135047427,-171.33707717,0.0003315,31]
[336774769,1725135047441,-4296.26,0.0003315,31]
[336774770,1725135047451,-768.58208783,0.0003315,31]
[336774771,1725135048276,-500.0,0.00032876,31]
[336774772,1725135048285,-5046.28455366,0.00032876,31]
[336774773,1725135048300,-2271.7672,0.00032876,31]
[336774774,1725135048311,-593.8,0.00032876,31]
[336774775,1725135092641,-1705.58824634,0.00032876,31]
[336774776,1725135092664,-500.0,0.00032876,31]
[336774777,1725135092685,-500.0,0.00032876,31]
[336774778,1725135092706,-500.0,0.00032876,31]
[336774779,1725135092728,-500.0,0.00032876,31]
[336774780,1725135092750,-500.0,0.00032876,31]
[336774781,1725135092771,-500.0,0.00032876,31]
[336774782,1725135092792,-500.0,0.00032876,31]
[336774783,1725135092814,-4173.87,0.00032876,31]
[336774784,1725135092835,-792.73,0.00032876,31]
[336774785,1725135092856,-766.4,0.00032876,31]
[336774786,1725135092877,-500.0,0.00032876,31]
[336774787,1725135092991,-741.68,0.00032876,30]
[336774788,1725135093014,-500.0,0.00032876,31]
[336774789,1725135093036,-1061.23,0.00032876,31]
[336774790,1725135093059,-500.0,0.00032876,31]
[336774791,1725135093080,-500.0,0.00032876,31]
[336774792,1725135093102,-500.0,0.00032876,31]
[336774793,1725135093124,-500.0,0.00032876,31]
[336774794,1725135093145,-500.0,0.00032876,31]
[336774795,1725135093166,-572.43,0.00032876,31]
[336774796,1725135093188,-930.99,0.00032876,31]
[336774797,1725135093210,-1861.55,0.00032876,31]
[336774798,1725135093232,-764.51,0.00032876,31]
[336774799,1725135093253,-1038.56,0.00032876,31]
[336774800,1725135093276,-1299.28,0.00032876,31]
[336774801,1725135093299,-500.0,0.00032876,31]
[336774802,1725135093321,-3137.84,0.00032876,31]
[336774803,1725135093343,-500.0,0.00032876,31]
[336774804,1725135093366,-500.0,0.00032876,31]
[336774805,1725135093388,-500.0,0.00032876,31]
[336774806,1725135093409,-500.0,0.00032876,31]
[336774807,1725135093431,-500.0,0.00032876,31]
[336774808,1725135093455,-500.0,0.00032876,31]
[336774809,1725135093477,-600.37,0.00032876,31]
[336774810,1725135093500,-500.0,0.00032876,31]
[336774811,1725135093522,-500.0,0.00032876,31]
[336774812,1725135093545,-500.0,0.00032876,31]
[336774813,1725135093568,-500.0,0.00032876,31]
[336774814,1725135093589,-962.62,0.00032876,31]
[336774815,1725135093612,-863.37,0.00032876,31]
[336774816,1725135093634,-500.0,0.00032876,31]
[336774817,1725135093657,-500.0,0.00032876,31]
[336774818,1725135093680,-1729.05,0.00032876,31]
[336774819,1725135093702,-500.0,0.00032876,31]
[336774820,1725135093725,-923.8,0.0003315,31]
[336774821,1725135093747,-500.0,0.0003315,31]
[336774822,1725135093770,-1386.65,0.0003315,31]
[336774823,1725135093792,-500.0,0.0003315,31]
[336774824,1725135093814,-500.0,0.0003315,31]
[336774825,1725135093836,-500.0,0.0003315,31]
[336774826,1725135093858,-653.71,0.0003315,31]
[336774827,1725135093880,-500.0,0.0003315,31]
[336774828,1725135093903,-509.67906271,0.0003315,31]
[336774829,1725135093925,-998.65,0.0003315,31]
[336774830,1725135093946,-500.0,0.0003315,31]
[336774831,1725135093968,-1007.12,0.0003315,31]
[336774832,1725135093990,-506.98806458,0.0003315,31]
[336774833,1725135094012,-740.61,0.0003315,31]
[336774834,1725135094034,-503.72883861,0.0003315,31]
[336774835,1725135094055,-500.0,0.0003315,31]
[336774836,1725135094077,-245.68104767,0.0003315,31]
[336774837,1725135094099,-4244.57,0.0003315,31]
[336774838,1725135094122,-500.0,0.0003315,31]
[336774839,1725135094144,-500.0,0.0003315,31]
[336774840,1725135094167,-1119.6,0.0003315,31]
[336774841,1725135094189,-744.97,0.0003315,31]
[336774842,1725135094212,-1631.44,0.0003315,31]
[336774843,1725135094236,-500.0,0.0003315,31]
[336774844,1725135094258,-2065.73474009,0.0003315,31]
[336774847,1725135230336,173.663823,0.00014247,2]
[336774849,1725135873014,166.278731,0.00014247,2]
[336774855,1725136029172,-166.278731,0.00023014,2]
[336774856,1725136029193,-250.0,0.00030157,2]
[336774857,1725136029215,-361.0,0.00030718,2]
[336774858,1725136029237,-8510.03341677,0.00030719,2]
[336774859,1725136036116,-3244.79475297,0.00030719,2]
[336774861,1725136090638,3104.50640738,0.000167,2]
[336774863,1725136109408,1993.99048373,0.000176,2]
[336774865,1725136121179,47920.91233752,0.0002,2]
[336774866,1725136121766,23633.03262479,0.0001999,2]
[336774904,1725136231858,-869.45923518,0.0003,15]
[336774905,1725136231867,-2573.25905762,0.0003,2]
[336774906,1725136231876,-601.65217797,0.0003,2]
[336774907,1725136231885,-1008.59163764,0.0003,7]
[336774908,1725136231894,-186.04074322,0.0003065,2]
[336774909,1725136231903,-13135.1718302,0.00030674,2]
[336774910,1725136231913,-231.291275,0.00031781,2]
[336774911,1725136231922,-166.278731,0.00031781,2]
[336774912,1725136231931,-500.0,0.00031991,7]
[336774913,1725136231940,-380.0,0.00032,120]
[336774914,1725136231949,-151.10377087,0.00032013,2]
[336774915,1725136231958,-500.0,0.00032117,7]
[336774916,1725136231970,-500.0,0.00032163,7]
[336774917,1725136231979,-622.77283541,0.00032638,2]
[336774918,1725136231991,-3704.42781249,0.00032638,2]
[336774919,1725136231999,-11453.72690287,0.00032776,5]
[336774920,1725136232008,-345.08,0.00032846,3]
[336774921,1725136232018,-1104.76,0.00032846,3]
[336774922,1725136232027,-1234.96183832,0.00032856,11]
[336774923,1725136232038,-29402.69272175,0.00032856,4]
[336774933,1725136238622,-0.81072856,0.00032856,4]
[336774937,1725136239959,-25354.16400799,0.00032856,4]
[336774938,1725136239968,-1891.75,0.00032856,3]
[336774939,1725136239981,-35905.01294095,0.00032866,4]
[336774940,1725136239993,-2497.68619908,0.00032866,4]
[336774951,1725136350013,200.937948,0.00014247,2]
[336774958,1725137149499,168.944824,0.00014247,2]
[336774959,1725137243133,-168.944824,0.00024475,2]
[336774960,1725137243155,-250.0,0.0002915,2]
[336774961,1725137243177,-300.0,0.00030962,2]
[336774962,1725137243201,-3323.21804413,0.00030963,2]
[336774963,1725137245281,-3447.220854,0.00030963,2]
[336774965,1725137351202,-18119.5611018,0.00028986,2]
[336774986,1725137431975,-305.10920343,0.00030351,2]
[336774994,1725137438346,-103.77961128,0.00030351,2]
[336774995,1725137438357,-773.16029882,0.00031,2]
[336774996,1725137438931,500.0,0.000278,7]
[336774997,1725137439373,229.25843672,0.000278,7]
[336775064,1725137440387,-3292.89520325,0.00031,2]
[336775067,1725137440403,-3987.3099997,0.00031,2]
[336775197,1725137443093,-311.69803547,0.00031,2]
[336775198,1725137443106,-7416.12424416,0.00031,2]
[336775199,1725137443117,-2140.00003,0.00031,2]
[336775200,1725137443148,-10174.30642967,0.00031,2]
[336775254,1725137659096,190.891055,0.00014247,2]
[336775257,1725138197251,168.944824,0.00014247,2]
[336775259,1725138439002,59424.53088784,0.0002,5]
[336775260,1725138447136,-168.944824,0.00026521,2]
[336775261,1725138447158,-300.0,0.00027911,2]
[336775262,1725138447179,-10740.49329408,0.00027912,2]
[336775263,1725138453109,-3492.48746769,0.00027912,2]
[336775265,1725138555153,-10657.01923823,0.00027912,2]
[336775266,1725138555177,-168.081148,0.00028802,2]
[336775267,1725138555197,-395.23743757,0.00028845,2]
[336775268,1725138560104,-1068.54933253,0.00028845,2]
[336775269,1725138560126,-174.9797707,0.00029061,2]
[336775273,1725138632094,-168.081148,0.00030303,2]
[336775275,1725138632105,-307.7503254,0.00030685,2]
[336775276,1725138632115,-207.8914059,0.00030685,2]
[336775279,1725138632126,-153.0,0.00030685,2]
[336775281,1725138632137,-153.0,0.00030685,2]
[336775282,1725138632147,-207.8914059,0.00030685,2]
[336775284,1725138632157,-153.0,0.00030685,2]
[336775286,1725138632167,-207.8914059,0.00030685,2]
[336775288,1725138632178,-207.8914059,0.00030685,2]
[336775290,1725138632187,-153.0,0.00030685,2]
[336775292,1725138632197,-207.8914059,0.00030685,2]
[336775294,1725138632207,-153.0,0.00030685,2]
[336775296,1725138632223,-207.8914059,0.00030685,2]
[336775298,1725138632233,-153.0,0.00030685,2]
[336775300,1725138632244,-207.8914059,0.000307,2]
[336775302,1725138632254,-207.8914059,0.000307,2]
[336775304,1725138632265,-2206.83289417,0.00030874,2]
[336775352,1725138638326,-2146.21860174,0.00030874,2]
[336775353,1725138638336,-14659.09769459,0.00031,2]
[336775354,1725138638345,-600.0,0.00031232,64]
[336775355,1725138638355,-500.0,0.000313,7]
[336775356,1725138638366,-207.8914059,0.00031507,2]
[336775357,1725138638376,-207.8914059,0.00031507,2]
[336775358,1725138638387,-207.8914059,0.00031507,2]
[336775359,1725138638398,-207.8914059,0.00031507,2]
[336775360,1725138638407,-204.9294743,0.00031507,2]
[336775361,1725138638418,-219.726711,0.00031781,2]
[336775362,1725138638427,-151.10377087,0.00032013,2]
[336775363,1725138638438,-3087.01334445,0.00032492,2]
[336775364,1725138638449,-30509.7622617,0.00032592,4]
[336775365,1725138638459,-628.17,0.00032592,3]
[336775366,1725138638474,-523.47,0.00032592,3]
[336775367,1725138638486,-261.74,0.00032592,3]
[336775368,1725138638496,-785.24,0.00032592,3]
[336775369,1725138638505,-2883.18,0.00032592,3]
[336775370,1725138638515,-2402.65,0.00032592,3]
[336775371,1725138638524,-2098.99082778,0.00032602,11]
[336775372,1725138638534,-16567.27122112,0.00032602,11]
[336775373,1725138638546,-500.0,0.00032602,31]
[336775374,1725138638555,-500.0,0.00032602,31]
[336775375,1725138638564,-502.34445884,0.00032602,31]
[336775376,1725138638575,-500.0,0.00032602,31]
[336775377,1725138638586,-500.0,0.00032602,31]
[336775378,1725138638596,-500.0,0.00032602,31]
[336775379,1725138638606,-500.0,0.00032602,31]
[336775380,1725138638618,-500.0,0.00032602,31]
[336775381,1725138638627,-500.0,0.00032602,31]
[336775382,1725138638639,-500.0,0.00032602,31]
[336775383,1725138638648,-400.21675644,0.00032602,31]
[336775384,1725138638658,-500.0,0.00032602,31]
[336775385,1725138638667,-500.0,0.00032602,31]
[336775386,1725138638677,-501.55547075,0.00032602,31]
[336775387,1725138638686,-500.0,0.00032602,31]
[336775388,1725138638695,-500.0,0.00032602,31]
[336775389,1725138638704,-500.0,0.00032602,31]
[336775390,1725138638714,-500.0,0.00032602,31]
[336775391,1725138638723,-500.0,0.00032602,31]
[336775392,1725138638732,-500.0,0.00032602,31]
[336775393,1725138638742,-500.0,0.00032602,31]
[336775394,1725138638753,-500.0,0.00032602,31]
[336775395,1725138638762,-593.8,0.00032602,31]
[336775396,1725138638771,-507.38898345,0.00032602,31]
[336775397,1725138638780,-500.0,0.00032602,31]
[336775398,1725138638790,-500.0,0.00032602,31]
[336775399,1725138638799,-500.0,0.00032602,31]
[336775400,1725138638808,-500.0,0.00032602,31]
[336775401,1725138638818,-500.0,0.00032602,31]
[336775402,1725138638827,-500.0,0.00032602,31]
[336775403,1725138638837,-543.4,0.00032602,31]
[336775404,1725138638846,-500.0,0.00032602,31]
[336775405,1725138638859,-500.0,0.00032602,31]
[336775406,1725138638869,-500.0,0.00032602,31]
[336775407,1725138638879,-500.0,0.00032602,31]
[336775408,1725138638888,-500.71012275,0.00032602,2]
[336775409,1725138638898,-500.0,0.00032602,31]
[336775410,1725138638908,-500.0,0.00032602,31]
[336775411,1725138638918,-500.0,0.00032602,31]
[336775412,1725138638931,-500.0,0.00032602,31]
[336775413,1725138638941,-500.0,0.00032602,31]
[336775414,1725138638951,-500.0,0.00032602,31]
[336775415,1725138638960,-500.0,0.00032602,31]
[336775416,1725138638969,-500.0,0.00032602,31]
[336775417,1725138639129,-500.0,0.00032602,31]
[336775418,1725138639141,-500.0,0.00032602,31]
[336775419,1725138639149,-500.0,0.00032602,31]
[336775420,1725138639159,-500.0,0.00032602,31]
[336775421,1725138639168,-500.0,0.00032602,31]
[336775422,1725138639177,-500.0,0.00032602,31]
[336775423,1725138639186,-500.0,0.00032602,31]
[336775424,1725138639196,-500.0,0.00032602,31]
[336775425,1725138639206,-500.0,0.00032602,31]
[336775426,1725138639221,-500.0,0.00032602,31]
[336775427,1725138639231,-500.0,0.00032602,31]
[336775428,1725138639241,-500.0,0.00032602,31]
[336775429,1725138639250,-500.0,0.00032602,31]
[336775430,1725138639260,-500.0,0.00032602,31]
[336775431,1725138639270,-502.10340332,0.00032602,31]
[336775432,1725138639279,-500.0,0.00032602,31]
[336775433,1725138639288,-500.0,0.00032602,31]
[336775434,1725138639300,-500.0,0.00032602,31]
[336775435,1725138639310,-500.0,0.00032602,31]
[336775436,1725138639320,-500.0,0.00032602,31]
[336775437,1725138639330,-500.0,0.00032602,31]
[336775438,1725138639339,-603.49829596,0.00032602,31]
[336775439,1725138639348,-500.0,0.00032602,31]
[336775440,1725138639357,-500.0,0.00032602,31]
[336775441,1725138639366,-500.0,0.00032602,31]
[336775442,1725138639375,-500.0,0.00032602,31]
[336775443,1725138639384,-500.0,0.00032602,31]
[336775444,1725138639394,-500.0,0.00032602,31]
[336775445,1725138639404,-500.0,0.00032602,31]
[336775446,1725138639413,-500.0,0.00032602,31]
[336775447,1725138639422,-500.0,0.00032602,31]
[336775448,1725138639432,-500.0,0.00032602,31]
[336775449,1725138639441,-500.99634791,0.00032602,31]
[336775450,1725138639451,-500.0,0.00032602,31]
[336775451,1725138639461,-500.0,0.00032602,31]
[336775452,1725138639470,-529.41,0.00032602,31]
[336775453,1725138639479,-500.0,0.00032602,31]
[336775454,1725138639490,-500.0,0.00032602,31]
[336775455,1725138639499,-500.0,0.00032602,31]
[336775456,1725138639508,-500.0,0.00032602,31]
[336775457,1725138639517,-500.0,0.00032602,31]
[336775458,1725138639527,-500.0,0.00032602,31]
[336775459,1725138639536,-637.8,0.00032602,7]
[336775460,1725138639545,-500.0,0.00032602,31]
[336775461,1725138639554,-500.0,0.00032602,31]
[336775462,1725138639563,-500.0,0.00032602,31]
[336775463,1725138639572,-500.0,0.00032602,31]
[336775464,1725138639582,-500.0,0.00032602,31]
[336775465,1725138639591,-500.0,0.00032602,31]
[336775466,1725138639600,-500.0,0.00032602,31]
[336775467,1725138639618,-500.0,0.00032602,31]
[336775468,1725138639629,-500.0,0.00032602,31]
[336775469,1725138639639,-500.0,0.00032602,31]
[336775470,1725138639649,-500.0,0.00032602,31]
[336775471,1725138639658,-500.0,0.00032602,30]
[336775472,1725138639668,-500.0,0.00032602,31]
[336775473,1725138639678,-350.74,0.00032602,31]
[336775474,1725138639687,-500.0,0.00032602,31]
[336775475,1725138639698,-500.0,0.00032602,31]
[336775476,1725138639707,-500.0,0.00032602,31]
[336775477,1725138639717,-500.0,0.00032602,31]
[336775478,1725138639727,-500.0,0.00032602,31]
[336775479,1725138639737,-500.0,0.00032602,31]
[336775480,1725138639746,-258.13,0.00032602,31]
[336775481,1725138639756,-433.82839045,0.00032602,2]
[336775482,1725138639766,-200.0,0.00032602,7]
[336775483,1725138639776,-200.0,0.00032602,7]
[336775484,1725138639786,-500.0,0.00032602,31]
[336775485,1725138639795,-432.22,0.00032602,31]
[336775486,1725138639806,-646.03622276,0.00032602,31]
[336775487,1725138639815,-500.0,0.00032602,31]
[336775488,1725138639825,-506.12913711,0.00032602,31]
[336775489,1725138639834,-500.0,0.00032602,31]
[336775490,1725138639844,-500.0,0.00032602,31]
[336775491,1725138639854,-500.0,0.00032602,31]
[336775492,1725138639863,-500.0,0.00032602,31]
[336775493,1725138639872,-500.0,0.00032602,31]
[336775494,1725138639882,-500.0,0.00032602,31]
[336775495,1725138639891,-500.0,0.00032602,31]
[336775496,1725138639901,-500.0,0.00032602,31]
[336775497,1725138639910,-584.46,0.00032602,31]
[336775498,1725138639920,-500.0,0.00032602,31]
[336775499,1725138639930,-500.0,0.00032602,31]
[336775500,1725138639941,-500.0,0.00032602,31]
[336775501,1725138639957,-500.0,0.00032602,31]
[336775502,1725138639967,-500.0,0.00032602,31]
[336775503,1725138639979,-500.0,0.00032602,31]
[336775504,1725138639989,-522.7,0.00032602,31]
[336775506,1725138639999,-30509.7622617,0.00032745,4]
[336775507,1725138640008,-3539.02070551,0.00032755,2]
[336775508,1725138640018,-30509.7622617,0.00032756,4]
[336775509,1725138640028,-500.0,0.00032765,2]
[336775510,1725138640038,-262.38549097,0.00032765,2]
[336775511,1725138640048,-500.0,0.00032765,2]
[336775512,1725138640058,-393.56334576,0.00032765,2]
[336775513,1725138640067,-500.0,0.00032765,2]
[336775514,1725138640077,-500.0,0.00032765,2]
[336775515,1725138640086,-500.0,0.00032765,31]
[336775516,1725138640096,-200.0,0.00032765,7]
[336775517,1725138640105,-30509.7622617,0.00032765,4]
[336775519,1725138640115,-88888.0,0.00032766,5]
[336775520,1725138640124,-202.81616688,0.00032773,3]
[336775521,1725138640134,-500.0,0.00032774,31]
[336775522,1725138640144,-336.13,0.00032775,31]
[336775523,1725138640154,-553.05,0.00032775,31]
[336775524,1725138640163,-446.85,0.00032775,31]
[336775526,1725138640173,-430.18,0.00032775,31]
[336775527,1725138640182,-500.0,0.00032775,31]
[336775528,1725138640192,-395.62,0.00032775,31]
[336775529,1725138640201,-500.0,0.00032775,31]
[336775530,1725138640211,-500.0,0.00032775,31]
[336775531,1725138640224,-150.112233,0.000328,5]
[336775532,1725138640233,-150.112233,0.000328,8]
[336775533,1725138640244,-150.112233,0.000328,10]
[336775534,1725138640255,-151.0,0.00032845,7]
[336775535,1725138640264,-151.0,0.00032845,7]
[336775536,1725138640274,-151.0,0.00032845,7]
[336775538,1725138640283,-151.0,0.00032845,7]
[336775539,1725138640293,-151.0,0.00032845,7]
[336775540,1725138640302,-151.0,0.00032845,7]
[336775541,1725138640313,-151.0,0.00032845,7]
[336775542,1725138640324,-151.0,0.00032845,7]
[336775543,1725138640334,-151.0,0.00032845,7]
[336775545,1725138640343,-30509.7622617,0.00032845,4]
[336775546,1725138640353,-500.0,0.00032854,31]
[336775547,1725138640362,-500.0,0.00032854,31]
[336775548,1725138640372,-500.0,0.00032854,31]
[336775549,1725138640381,-500.0,0.00032854,31]
[336775550,1725138640392,-500.0,0.00032854,31]
[336775551,1725138640401,-500.0,0.00032854,31]
[336775552,1725138640415,-500.0,0.00032854,31]
[336775553,1725138640425,-500.0,0.00032854,31]
[336775554,1725138640435,-500.0,0.00032854,31]
[336775555,1725138640446,-500.0,0.00032854,31]
[336775556,1725138640457,-500.0,0.00032854,31]
[336775557,1725138640467,-500.0,0.00032854,31]
[336775558,1725138640477,-500.0,0.00032854,31]
[336775559,1725138640486,-200.0,0.00032854,7]
[336775560,1725138640496,-151.0,0.00032854,7]
[336775561,1725138640505,-151.0,0.00032854,7]
[336775562,1725138640515,-500.0,0.00032854,31]
[336775563,1725138640526,-1339.201447,0.00032854,7]
[336775564,1725138640538,-1339.201447,0.00032854,7]
[336775565,1725138640548,-151.0,0.00032854,7]
[336775566,1725138640559,-151.0,0.00032854,7]
[336775567,1725138640570,-167.173989,0.00032854,7]
[336775568,1725138640580,-3983.516807,0.00032854,7]
[336775569,1725138640589,-3983.516807,0.00032854,7]
[336775570,1725138640599,-30509.7622617,0.00032855,4]
[336775571,1725138640609,-500.0,0.00032855,31]
[336775572,1725138640619,-500.0,0.00032855,31]
[336775573,1725138640629,-503.17932024,0.00032855,31]